bitfinex/quotes_ETHUSD_20250726
["timestamp","ask_amount","ask_price","bid_price","bid_amount"]
[1753505255015,0.4658,3754.4,3754.2,2.66366188]
[1753505255205,0.1328,3754.5,3754.3,2.42]
[1753505255405,0.1328,3754.5,3754.3,2.8798]
[1753505255619,0.5986,3754.5,3754.3,2.8798]
[1753505257398,0.5986,3754.5,3754.4,0.4598]
[1753505257399,0.1328,3754.5,3754.4,0.4598]
[1753505259116,0.1328,3754.5,3754.4,2.42]
[1753505259283,0.5986,3754.5,3754.4,2.42]
[1753505259506,0.1328,3754.5,3754.4,2.8798]
[1753505261238,0.9325703,3755.5,3754.5,0.8332]
[1753505261441,0.9325703,3755.5,3754.7,0.1328]
[1753505261604,0.1328,3755.4,3755.2,2.66296974]
[1753505261799,0.1328,3755.4,3755.3,2.8798]
[1753505264771,0.1328,3755.4,3755.3,2.42]
[1753505264972,0.7914,3755.3,3754.6,0.4598]
[1753505265153,0.7914,3755.3,3754.7,2.6633262]
[1753505265357,0.1328,3755.0,3754.7,5.5421262]
[1753505265558,0.1328,3755.0,3754.8,2.8788]
[1753505265970,0.1328,3755.0,3754.9,6.00098676]
[1753505266452,0.1328,3755.0,3754.9,3.3378]
[1753505267133,0.1328,3755.0,3754.9,2.8788]
[1753505269857,0.1328,3755.0,3754.9,0.4598]
[1753505270066,0.5839,3755.0,3754.9,2.419]
[1753505270627,0.7758,3755.3,3754.9,5.56668676]
[1753505270826,0.1328,3755.2,3755.0,0.4845]
[1753505271126,0.1328,3755.2,3755.0,0.9443]
[1753505271462,0.1328,3755.2,3755.1,0.4845]
[1753505271624,0.9307,3755.1,3754.4,0.8216]
[1753505271968,0.9086,3755.0,3754.5,5.56695734]
[1753505272258,0.4511,3754.9,3754.6,2.419]
[1753505272563,1.07123033,3754.8,3754.6,2.419]
[1753505272891,0.5839,3754.7,3754.6,2.419]
[1753505273988,2.66346229,3754.6,3753.9,0.1338]
[1753505274281,0.1328,3754.3,3754.0,2.419]
[1753505274505,2.66356461,3754.4,3754.1,2.419]
[1753505274759,0.1328,3754.2,3754.1,2.419]
[1753505277164,0.1328,3754.2,3753.9,0.4855]
[1753505277372,0.1328,3754.2,3754.0,2.9035]
[1753505278098,0.1328,3754.2,3754.1,0.4845]
[1753505279994,0.1328,3754.2,3753.9,0.001]
[1753505280155,0.1328,3754.2,3754.1,2.419]
[1753505280355,0.1328,3754.2,3754.1,2.9035]
[1753505281792,0.5839,3754.2,3754.1,2.419]
[1753505282093,0.1328,3754.2,3754.1,2.419]
[1753505282289,0.1328,3754.2,3754.1,2.9035]
[1753505283182,0.1328,3754.2,3753.9,0.001]
[1753505283486,0.5839,3754.2,3754.1,2.419]
[1753505283663,0.1328,3754.2,3754.1,2.419]
[1753505283862,0.1328,3754.2,3754.1,2.9035]
[1753505284858,0.1328,3754.2,3754.1,2.419]
[1753505285576,0.5839,3754.2,3754.1,2.419]
[1753505287298,0.5839,3754.2,3754.1,0.4845]
[1753505287299,0.1328,3754.2,3754.1,0.4845]
[1753505287596,0.1328,3754.2,3754.1,2.419]
[1753505288502,0.1328,3754.2,3754.1,2.9035]
[1753505289765,0.1328,3754.2,3754.1,3.3633]
[1753505292005,0.1328,3754.2,3754.1,2.9035]
[1753505292995,0.1328,3754.2,3754.1,2.419]
[1753505293196,0.5839,3754.2,3754.1,2.419]
[1753505293403,0.1328,3754.2,3754.1,2.419]
[1753505293703,0.1328,3754.2,3754.1,2.9035]
[1753505293909,1.29176193,3754.2,3754.1,2.419]
[1753505294600,0.1328,3754.2,3754.1,2.419]
[1753505294765,0.1328,3754.2,3754.1,2.9035]
[1753505297479,0.1328,3754.2,3754.1,0.4845]
[1753505297672,2.79648334,3754.2,3754.1,0.4845]
[1753505297990,3.0,3754.1,3753.9,0.001]
[1753505298301,0.1328,3754.0,3753.9,0.001]
[1753505298505,1.0741,3754.0,3753.9,0.001]
[1753505298710,1.035837,3754.0,3753.9,0.001]
[1753505298881,6.69966225,3754.0,3753.9,0.001]
[1753505299087,7.70970843,3754.0,3753.9,0.001]
[1753505299395,7.23490843,3754.0,3753.9,0.001]
[1753505302493,8.51450843,3754.0,3753.9,0.001]
[1753505303672,8.03970843,3754.0,3753.9,0.001]
[1753505305323,9.31397473,3754.0,3753.9,0.001]
[1753505305479,9.45491333,3754.0,3753.9,0.001]
[1753505306990,9.45491333,3754.0,3753.9,1e-08]
[1753505307879,9.59411869,3754.0,3753.9,1e-08]
[1753505310702,9.59382882,3754.0,3753.9,1e-08]
[1753505312613,16.65382882,3754.0,3753.9,1e-08]
[1753505315236,16.65382882,3754.0,3753.1,0.001]
[1753505315237,7.63199631,3753.2,3753.1,0.001]
[1753505315410,13.54835464,3753.2,3753.1,0.001]
[1753505315611,13.54835464,3753.2,3753.1,0.4765]
[1753505316555,13.54835464,3753.2,3753.1,0.001]
[1753505317844,14.56485464,3753.2,3753.1,0.001]
[1753505322436,14.81357247,3753.2,3753.1,0.001]
[1753505322835,14.09835464,3753.2,3753.1,0.001]
[1753505323040,14.09835464,3753.2,3753.1,0.4765]
[1753505324651,3.1336,3753.2,3753.1,0.4765]
[1753505324832,5.5536,3753.2,3753.1,0.9402]
[1753505325030,2.5536,3753.2,3753.1,0.9402]
[1753505325226,0.1336,3753.2,3753.1,1.7119]
[1753505325427,3.1336,3753.2,3753.1,1.7119]
[1753505325968,3.1336,3753.2,3753.1,0.9402]
[1753505326267,5.79799305,3753.2,3753.1,0.9402]
[1753505326769,3.1336,3753.2,3753.1,0.9402]
[1753505327260,0.1336,3753.2,3753.1,0.9402]
[1753505327418,3.1336,3753.2,3753.1,0.9402]
[1753505327625,5.79799305,3753.2,3753.1,0.9402]
[1753505328026,0.1336,3753.2,3753.1,0.9402]
[1753505328238,3.1336,3753.2,3753.1,0.9402]
[1753505329847,5.79799305,3753.2,3753.1,0.4954]
[1753505330363,3.1336,3753.2,3753.1,0.9439]
[1753505330672,3.1336,3753.2,3753.1,0.4954]
[1753505330890,5.79799305,3753.2,3753.1,0.4954]
[1753505331082,3.1336,3753.2,3753.1,0.4954]
[1753505331370,3.1336,3753.2,3753.1,0.9439]
[1753505332778,5.79799305,3753.2,3753.1,0.4954]
[1753505335872,5.79799305,3753.2,3753.1,0.001]
[1753505336978,5.79799305,3753.2,3753.1,0.4954]
[1753505337980,5.79799305,3753.2,3753.1,0.001]
[1753505338388,5.79799305,3753.2,3753.1,0.4954]
[1753505338545,5.79799305,3753.2,3753.1,0.001]
[1753505338747,9.19719305,3753.2,3753.1,0.001]
[1753505338952,10.04963248,3753.2,3753.1,0.001]
[1753505339657,9.58783248,3753.2,3753.1,0.001]
[1753505340484,10.04963248,3753.2,3753.1,0.001]
[1753505341859,9.58783248,3753.2,3753.1,0.001]
[1753505343062,6.34799305,3753.2,3753.1,0.4954]
[1753505343382,8.76699305,3753.2,3753.1,0.4954]
[1753505343952,9.33818742,3753.2,3753.1,0.001]
[1753505344271,9.58782699,3753.2,3753.1,0.001]
[1753505344450,10.04962699,3753.2,3753.1,0.001]
[1753505344784,9.58782699,3753.2,3753.1,0.001]
[1753505344955,8.90798742,3753.2,3753.1,0.4954]
[1753505346190,9.15762712,3753.2,3753.1,0.4954]
[1753505346396,8.90798742,3753.2,3753.1,0.4954]
[1753505348666,6.48898742,3753.2,3753.1,0.4954]
[1753505348896,8.90798742,3753.2,3753.1,0.4954]
[1753505349102,5.93898742,3753.2,3753.1,0.9439]
[1753505349280,8.21699305,3753.2,3753.1,0.9439]
[1753505350284,8.21699305,3753.2,3753.1,0.4954]
[1753505350905,8.21699305,3753.2,3753.1,0.9439]
[1753505351066,5.5526,3753.2,3753.1,0.9439]
[1753505353384,3.1336,3753.2,3753.1,0.9439]
[1753505353586,8.21699305,3753.2,3753.1,0.9439]
[1753505354095,8.21699305,3753.2,3753.1,0.001]
[1753505354314,9.25002437,3753.2,3753.1,0.001]
[1753505354477,8.64719305,3753.2,3753.1,0.001]
[1753505354914,9.03798036,3753.2,3753.1,0.001]
[1753505355087,9.82478036,3753.2,3753.1,0.001]
[1753505355618,10.83658036,3753.2,3753.1,0.001]
[1753505357382,10.83958036,3753.2,3753.1,0.001]
[1753505357712,7.00433503,3753.0,3752.9,0.001]
[1753505357886,11.2143513,3752.7,3752.6,0.001]
[1753505358209,13.7669513,3752.7,3752.6,0.001]
[1753505358412,14.6850513,3752.7,3752.6,0.001]
[1753505361724,15.07553398,3752.7,3752.6,0.001]
[1753505365223,15.07537992,3752.7,3752.6,0.001]
[1753505367324,12.65637992,3752.7,3752.6,0.001]
[1753505367507,15.07537992,3752.7,3752.6,0.001]
[1753505367699,14.60317992,3752.7,3752.6,0.001]
[1753505369600,14.15727992,3752.7,3752.6,0.001]
[1753505370403,14.60317992,3752.7,3752.6,0.001]
[1753505372030,21.66317992,3752.7,3752.6,0.001]
[1753505373536,21.80243552,3752.7,3752.6,0.001]
[1753505374035,21.80343552,3752.7,3752.6,0.001]
[1753505374332,19.38343552,3752.7,3752.6,0.001]
[1753505374537,21.80343552,3752.7,3752.6,0.001]
[1753505375318,19.38343552,3752.7,3752.6,0.001]
[1753505375617,21.80343552,3752.7,3752.6,0.001]
[1753505376543,10.38793226,3752.7,3752.6,0.9116]
[1753505376849,7.3328556,3752.7,3752.6,1.7069]
[1753505377206,7.1936,3752.7,3752.6,1.7069]
[1753505380853,0.1336,3752.7,3752.6,1.7069]
[1753505387358,0.1336,3752.7,3752.6,2.14427362]
[1753505387946,0.1336,3752.7,3752.6,1.7069]
[1753505397684,0.13210558,3752.7,3752.6,1.7069]
[1753505401008,0.59650558,3752.7,3752.6,0.001]
[1753505402576,0.13210558,3752.7,3752.6,0.4908]
[1753505404090,3.13210558,3752.7,3752.6,0.4908]
[1753505404506,2.79685362,3752.7,3752.6,0.4908]
[1753505404678,3.26125362,3752.7,3752.6,0.001]
[1753505405983,2.79685362,3752.7,3752.6,0.001]
[1753505406711,2.79685362,3752.7,3752.6,0.4908]
[1753505406915,3.13210558,3752.7,3752.6,0.4908]
[1753505408813,0.13210558,3752.7,3752.6,0.4908]
[1753505409519,3.13210558,3752.7,3752.6,0.4908]
[1753505409998,0.13210558,3752.7,3752.6,0.4908]
[1753505410939,3.13210558,3752.7,3752.6,0.4908]
[1753505411709,2.79685362,3752.7,3752.6,0.4908]
[1753505411913,3.13210558,3752.7,3752.6,0.4908]
[1753505414115,2.79685362,3752.7,3752.6,0.4908]
[1753505414500,2.79685362,3752.7,3752.6,0.001]
[1753505414690,3.73155362,3752.7,3752.6,0.001]
[1753505415201,3.26125362,3752.7,3752.6,0.001]
[1753505415903,2.79685362,3752.7,3752.6,0.001]
[1753505416089,3.26125362,3752.7,3752.6,0.001]
[1753505416283,3.51110775,3752.7,3752.6,0.001]
[1753505416614,3.98140775,3752.7,3752.6,0.001]
[1753505416818,3.98140774,3752.7,3752.6,0.001]
[1753505417018,3.51110774,3752.7,3752.6,0.001]
[1753505417248,3.59670774,3752.7,3752.6,0.001]
[1753505417419,5.44900903,3752.7,3752.6,0.001]
[1753505418096,5.44901359,3752.7,3752.6,0.001]
[1753505418297,5.45101359,3752.7,3752.6,0.001]
[1753505419691,5.45095043,3752.7,3752.6,0.001]
[1753505422519,5.4509052,3752.7,3752.6,0.001]
[1753505423954,10.8596052,3752.7,3752.6,0.001]
[1753505424538,10.8596052,3752.7,3752.6,1e-08]
[1753505424763,17.9196052,3752.7,3752.5,0.001]
[1753505424941,17.9196052,3752.7,3752.5,1e-08]
[1753505424942,11.60127389,3752.6,3752.5,1e-08]
[1753505425114,19.57777389,3752.6,3752.5,1e-08]
[1753505427717,19.57717203,3752.6,3752.5,1e-08]
[1753505431327,19.1160992,3752.6,3752.5,1e-08]
[1753505431536,6.21496109,3752.4,3752.3,0.001]
[1753505431851,9.93863798,3752.4,3752.3,0.001]
[1753505432047,10.85513798,3752.4,3752.3,0.001]
[1753505433625,10.42490639,3752.2,3752.1,0.001]
[1753505433826,13.36668328,3752.2,3752.1,0.001]
[1753505434021,13.82218328,3752.2,3752.1,0.001]
[1753505436282,14.28318328,3752.2,3752.1,0.001]
[1753505436757,13.82218328,3752.2,3752.1,0.001]
[1753505437158,13.82184646,3752.2,3752.1,0.001]
[1753505439627,15.10974646,3752.2,3752.1,0.001]
[1753505440437,14.64874646,3752.2,3752.1,0.001]
[1753505442956,14.64875666,3752.2,3752.1,0.001]
[1753505448973,21.70875666,3752.2,3752.1,0.001]
[1753505449639,21.25325666,3752.2,3752.1,0.001]
[1753505449841,21.72165666,3752.2,3752.1,0.001]
[1753505451468,21.25325666,3752.2,3752.1,0.001]
[1753505451673,6.2152452,3752.0,3751.9,0.001]
[1753505451885,6.2152452,3752.0,3751.8,0.001]
[1753505451886,6.21531623,3751.9,3751.8,0.001]
[1753505452194,7.0735665,3751.9,3751.8,0.001]
[1753505454074,7.0735665,3751.9,3751.6,0.4716]
[1753505454075,6.21560042,3751.5,3751.0,0.001]
[1753505454239,13.233518,3751.5,3751.1,0.4324]
[1753505454443,13.367118,3751.5,3751.4,0.4716]
[1753505454655,13.36765747,3751.5,3751.4,0.4716]
[1753505455267,13.50689749,3751.5,3751.4,0.4716]
[1753505456991,13.50689749,3751.5,3751.4,0.001]
[1753505457655,13.50689749,3751.5,3751.4,0.4716]
[1753505457973,13.50689749,3751.5,3751.4,0.001]
[1753505458145,14.76259749,3751.5,3751.4,0.001]
[1753505459393,14.29419749,3751.5,3751.4,0.001]
[1753505459600,14.76259749,3751.5,3751.4,0.001]
[1753505460306,3.2158136,3751.2,3751.1,0.001]
[1753505460463,8.7747604,3751.2,3751.1,0.001]
[1753505460669,8.9083604,3751.2,3751.1,0.001]
[1753505460898,9.15799132,3751.2,3751.1,0.001]
[1753505461299,9.15799132,3751.2,3751.1,0.4716]
[1753505461597,8.9083604,3751.2,3751.1,0.001]
[1753505461769,9.62636049,3751.2,3751.1,0.001]
[1753505464379,9.15796049,3751.2,3751.1,0.001]
[1753505464700,9.62636049,3751.2,3751.1,0.001]
[1753505465001,9.98616049,3751.2,3751.1,0.001]
[1753505465201,10.45456049,3751.2,3751.1,0.001]
[1753505465983,10.45456049,3751.2,3750.8,1e-08]
[1753505465984,3.21602682,3750.9,3750.8,1e-08]
[1753505466186,13.23415692,3750.9,3750.8,1e-08]
[1753505466384,13.70255692,3750.9,3750.8,1e-08]
[1753505466906,13.56161012,3750.9,3750.8,1e-08]
[1753505467112,13.70233704,3750.9,3750.8,1e-08]
[1753505468508,13.23393704,3750.9,3750.8,1e-08]
[1753505468805,13.23393704,3750.9,3750.6,0.001]
[1753505468806,6.21616898,3750.7,3750.6,0.001]
[1753505468980,9.02427594,3750.7,3750.6,0.001]
[1753505469387,10.42611441,3750.5,3750.4,0.4706]
[1753505469589,3.21645335,3750.3,3750.2,0.4314]
[1753505469915,2.66659555,3750.1,3749.1,6.259]
[1753505470106,9.29439881,3750.1,3749.1,6.259]
[1753505470309,9.29439881,3750.1,3750.0,31.6978]
[1753505471316,9.84439881,3750.1,3750.0,30.4706]
[1753505471472,12.84439881,3750.1,3750.0,30.4706]
[1753505472119,12.84439881,3750.1,3750.0,30.0]
[1753505473513,3.21673777,3749.9,3749.8,0.001]
[1753505473712,3.21673777,3749.9,3749.1,0.7958]
[1753505473713,2.66723567,3749.2,3749.1,0.7958]
[1753505473910,8.08623567,3749.2,3749.1,0.7958]
[1753505474213,8.08623567,3749.2,3749.1,1.2664]
[1753505474413,8.08623567,3749.2,3749.1,1.6978]
[1753505474778,5.419,3749.2,3749.1,1.6978]
[1753505474974,8.08623567,3749.2,3749.1,1.6978]
[1753505475174,5.418,3749.2,3749.1,1.6978]
[1753505476078,8.76883567,3749.2,3749.1,1.6978]
[1753505476283,9.31063567,3749.2,3749.1,0.902]
[1753505477203,8.76883567,3749.2,3749.1,0.4706]
[1753505477403,8.76883567,3749.2,3749.1,0.902]
[1753505477793,3.1336,3749.2,3749.1,1.6917]
[1753505478103,5.5526,3749.2,3749.1,1.6917]
[1753505482116,3.1336,3749.2,3749.1,1.6917]
[1753505482316,5.5526,3749.2,3749.1,1.6917]
[1753505482610,3.1336,3749.2,3749.1,4.79492788]
[1753505482812,0.1336,3749.2,3749.1,4.79492788]
[1753505483112,0.1336,3749.4,3749.3,2.66716214]
[1753505483317,0.1336,3749.4,3749.2,2.66722413]
[1753505483686,0.1336,3749.4,3749.3,0.7897]
[1753505483887,0.1336,3749.4,3749.3,0.9454]
[1753505484087,0.1336,3749.4,3749.3,1.7351]
[1753505485219,0.1336,3749.4,3749.3,4.40226453]
[1753505485418,2.66638508,3750.4,3749.3,4.40226453]
[1753505485419,2.80566682,3750.5,3749.7,0.8258]
[1753505485597,0.13930334,3750.5,3749.8,0.9454]
[1753505485808,0.13930334,3750.5,3750.1,0.8258]
[1753505485991,2.80832378,3751.1,3750.6,0.8258]
[1753505486194,0.1336,3750.7,3750.6,3.49198262]
[1753505486601,2.80832378,3751.3,3750.7,3.49193844]
[1753505486811,0.1336,3750.9,3750.8,3.61149789]
[1753505486990,0.1336,3750.9,3750.8,4.43729789]
[1753505488903,0.1336,3750.9,3750.8,1.7712]
[1753505491992,3.8004,3750.7,3750.0,2.419]
[1753505492226,3.0,3750.5,3749.7,5.08582309]
[1753505492395,3.0,3750.5,3750.1,0.4707]
[1753505492589,3.0,3750.5,3750.1,0.9454]
[1753505492790,2.6663132,3750.5,3750.2,0.4707]
[1753505492995,2.6663132,3750.5,3750.3,0.4707]
[1753505493211,3.0,3750.5,3750.1,0.4747]
[1753505493406,3.0,3750.5,3750.2,0.4707]
[1753505493606,3.0,3750.5,3750.3,0.4707]
[1753505493810,2.66631681,3750.5,3750.4,0.4707]
[1753505494306,3.0,3750.5,3750.4,0.4707]
[1753505495834,2.66618434,3750.7,3750.4,0.4707]
[1753505496604,3.0,3750.5,3750.4,0.4707]
[1753505497705,3.0,3750.7,3750.4,1.2426]
[1753505497932,3.0,3750.5,3750.4,0.7719]
[1753505498602,3.0,3750.5,3750.4,1.2426]
[1753505498827,2.66616898,3750.7,3750.4,1.2426]
[1753505499332,3.0,3750.5,3750.4,1.2426]
[1753505499532,3.0,3750.6,3750.4,1.2426]
[1753505500751,3.0,3750.6,3750.5,0.4707]
[1753505500901,0.002,3751.5,3750.6,0.7832]
[1753505501107,2.6676789,3751.4,3750.6,0.7832]
[1753505501304,3.002,3751.4,3750.7,3.61151697]
[1753505501500,0.002,3751.4,3750.8,3.61149103]
[1753505501714,0.002,3751.4,3750.9,1.7286]
[1753505501922,0.002,3751.4,3750.9,4.1496]
[1753505502208,0.002,3751.4,3751.0,0.9454]
[1753505502409,0.002,3751.4,3751.0,3.6113492]
[1753505502645,0.002,3751.4,3751.1,0.9454]
[1753505503141,0.002,3751.4,3751.2,0.9454]
[1753505503514,0.002,3751.4,3751.0,2.66595037]
[1753505503716,0.002,3751.4,3751.1,0.9454]
[1753505504231,0.002,3751.4,3751.2,0.9454]
[1753505504638,0.002,3751.4,3751.2,0.4747]
[1753505504935,0.002,3751.4,3751.3,0.4707]
[1753505505139,0.002,3751.4,3751.3,0.9454]
[1753505508316,0.002,3751.4,3751.3,0.4707]
[1753505510325,0.002,3751.4,3751.3,0.9195]
[1753505510757,0.002,3751.4,3751.3,4.34324254]
[1753505510936,0.002,3751.4,3751.3,5.20707526]
[1753505512159,0.002,3751.4,3751.3,7.63007526]
[1753505512462,0.002,3751.4,3751.3,7.60341784]
[1753505515560,0.002,3751.4,3751.3,11.8132211]
[1753505516375,1e-08,3751.5,3751.4,6.98117148]
[1753505516543,1e-08,3751.5,3751.4,9.99820275]
[1753505518328,0.002,3752.3,3752.1,3.43067416]
[1753505518532,0.002,3752.3,3752.1,5.8813259]
[1753505518858,0.002,3752.3,3752.1,6.91477416]
[1753505521659,0.002,3752.3,3752.1,4.49077416]
[1753505521859,0.002,3752.3,3752.1,8.07801028]
[1753505522060,0.002,3752.3,3752.1,8.05135854]
[1753505523854,1e-08,3752.2,3752.1,8.60135854]
[1753505524553,1e-08,3752.2,3752.1,5.62735854]
[1753505524758,1e-08,3752.2,3752.1,8.05235854]
[1753505526881,1e-08,3752.2,3752.1,5.17855854]
[1753505527077,1e-08,3752.2,3752.1,7.12585854]
[1753505527287,1e-08,3752.2,3752.1,7.60355854]
[1753505532237,1e-08,3752.2,3752.1,8.05235854]
[1753505534391,1e-08,3752.2,3752.1,8.05135854]
[1753505535261,1e-08,3752.2,3752.1,7.60255854]
[1753505538558,1e-08,3752.2,3752.1,12.2583618]
[1753505543305,1e-08,3752.2,3752.1,12.2563618]
[1753505544170,1e-08,3752.2,3752.1,9.8343618]
[1753505544395,1e-08,3752.2,3752.1,12.2563618]
[1753505544607,1e-08,3752.3,3752.2,2.66510313]
[1753505544782,1e-08,3752.3,3752.2,8.61351729]
[1753505545101,1e-08,3752.3,3752.2,6.16486626]
[1753505545310,1e-08,3752.3,3752.2,8.58686626]
[1753505545600,1e-08,3752.3,3752.2,11.58686626]
[1753505546374,1e-08,3752.3,3752.2,15.79666952]
[1753505547676,1e-08,3752.3,3752.2,11.58686626]
[1753505550912,1e-08,3752.3,3752.2,9.16486626]
[1753505551116,1e-08,3752.3,3752.2,11.58586626]
[1753505552015,1e-08,3752.3,3752.2,11.13986626]
[1753505552215,1e-08,3752.3,3752.2,11.58586626]
[1753505554112,1e-08,3752.3,3752.2,11.58486626]
[1753505554317,1e-08,3752.3,3752.2,9.16486626]
[1753505554505,1e-08,3752.3,3752.2,12.13486626]
[1753505557726,1e-08,3752.3,3752.2,9.71486626]
[1753505558020,1e-08,3752.3,3752.2,12.13486626]
[1753505560689,1e-08,3752.3,3752.2,9.71486626]
[1753505561009,0.44170001,3752.3,3752.2,5.08410313]
[1753505561212,0.44170001,3752.3,3752.2,5.11075416]
[1753505563217,0.44170001,3752.3,3752.2,5.08410313]
[1753505563591,0.44170001,3752.3,3752.2,2.66510313]
[1753505563803,0.91530001,3752.3,3752.2,5.08810313]
[1753505564204,0.91530001,3752.3,3752.2,2.66510313]
[1753505564428,0.91530001,3752.3,3752.2,5.08810313]
[1753505564633,0.91530001,3752.3,3752.2,2.66510313]
[1753505564807,0.91530001,3752.3,3752.2,5.08810313]
[1753505566037,0.44170001,3752.3,3752.2,5.08810313]
[1753505566195,0.44170001,3752.3,3752.2,2.66510313]
[1753505566400,0.44170001,3752.3,3752.2,5.08810313]
[1753505567637,0.44170001,3752.3,3752.2,2.66510313]
[1753505567940,0.89240001,3752.3,3752.2,5.08710313]
[1753505569402,0.89240001,3752.3,3752.2,2.66510313]
[1753505569607,0.89240001,3752.3,3752.2,5.08710313]
[1753505570218,0.89240001,3752.3,3752.2,2.66510313]
[1753505570420,0.89240001,3752.3,3752.2,5.08810313]
[1753505571922,0.89240001,3752.3,3752.2,2.66510313]
[1753505572124,0.89240001,3752.3,3752.2,5.08810313]
[1753505573347,0.89240001,3752.3,3752.2,2.66510313]
[1753505573651,0.89240001,3752.3,3752.2,5.08710313]
[1753505575923,0.89240001,3752.3,3752.2,2.66510313]
[1753505576139,0.89240001,3752.3,3752.2,5.08710313]
[1753505579275,0.44170001,3752.3,3752.2,5.08710313]
[1753505579773,0.89240001,3752.3,3752.2,5.08710313]
[1753505580140,0.44170001,3752.3,3752.2,5.08710313]
[1753505580882,0.44170001,3752.3,3752.2,6.84760792]
[1753505580883,1e-08,3752.3,3752.2,6.84760792]
[1753505582674,1e-08,3752.3,3752.2,2.66510313]
[1753505582848,1.25660001,3752.3,3752.2,5.08710313]
[1753505584567,1.25660001,3752.3,3752.2,2.66510313]
[1753505584778,1.25660001,3752.3,3752.2,5.08710313]
[1753505585078,1e-08,3752.3,3752.2,5.57120313]
[1753505585248,1e-08,3752.3,3752.2,6.89420309]
[1753505587254,1e-08,3752.3,3752.2,6.45490309]
[1753505590769,1e-08,3752.3,3752.2,5.96980309]
[1753505590971,0.90210001,3752.3,3752.2,5.08610313]
[1753505591650,0.45140001,3752.3,3752.2,5.08610313]
[1753505591863,0.45140001,3752.3,3752.2,2.66510313]
[1753505592182,0.45140001,3752.3,3752.2,5.08710313]
[1753505596210,1e-08,3752.3,3752.2,5.08710313]
[1753505596871,1e-08,3752.3,3752.2,2.66510313]
[1753505597074,1e-08,3752.3,3752.2,5.08610313]
[1753505599909,1e-08,3752.3,3752.2,2.66510313]
[1753505600106,1e-08,3752.3,3752.2,5.08510313]
[1753505601615,1e-08,3752.3,3752.2,5.57390313]
[1753505601975,1e-08,3752.3,3752.2,5.08510313]
[1753505603175,0.45700001,3752.3,3752.2,5.08510313]
[1753505603571,0.45700001,3752.3,3752.2,2.66510313]
[1753505603776,0.45700001,3752.3,3752.2,5.08510313]
[1753505604212,1e-08,3752.3,3752.2,5.08510313]
[1753505604421,1e-08,3752.3,3752.2,2.66510313]
[1753505604575,1e-08,3752.3,3752.2,5.08510313]
[1753505605277,1e-08,3752.3,3752.2,2.66510313]
[1753505605479,0.45700001,3752.3,3752.2,2.66510313]
[1753505605694,0.45700001,3752.3,3752.2,5.08410313]
[1753505606010,0.45700001,3752.3,3752.2,2.66510313]
[1753505606208,0.45700001,3752.3,3752.2,2.419]
[1753505606412,1.24775001,3752.3,3752.1,0.001]
[1753505606720,0.76075001,3752.3,3752.1,0.001]
[1753505606875,0.457,3752.2,3752.1,0.001]
[1753505607080,1.7227,3752.2,3752.1,2.421]
[1753505607281,1.925345,3752.2,3752.1,2.421]
[1753505610915,1.438345,3752.2,3752.1,2.421]
[1753505612095,1.925345,3752.2,3752.1,2.421]
[1753505612692,1.925345,3752.2,3752.1,0.001]
[1753505613219,1.925345,3752.2,3752.1,2.421]
[1753505614018,1.925345,3752.2,3752.1,0.001]
[1753505614413,1.925345,3752.2,3752.1,2.42]
[1753505615396,1.438345,3752.2,3752.1,2.42]
[1753505615599,1.925345,3752.2,3752.1,2.42]
[1753505616532,4.59044813,3752.2,3752.1,2.42]
[1753505617726,1.925345,3752.2,3752.1,2.42]
[1753505618742,4.59044813,3752.2,3752.1,2.42]
[1753505619329,1.925345,3752.2,3752.1,2.42]
[1753505621409,1.438345,3752.2,3752.1,2.42]
[1753505624402,0.13360001,3752.3,3752.1,2.9088]
[1753505624597,0.13360001,3752.3,3752.2,0.4888]
[1753505625309,0.13360001,3752.3,3752.1,2.42]
[1753505625517,0.13360001,3752.3,3752.1,2.9088]
[1753505628754,0.13360001,3752.3,3752.2,0.4521]
[1753505628907,1e-08,3752.3,3752.2,0.4521]
[1753505637967,3.43410313,3752.2,3752.1,0.001]
[1753505638140,1e-08,3752.3,3752.1,3.3142]
[1753505638341,1e-08,3752.3,3752.2,0.4521]
[1753505638558,1e-08,3752.3,3752.2,2.8781]
[1753505638895,1e-08,3752.3,3752.2,0.4521]
[1753505639066,1e-08,3752.3,3752.2,2.8781]
[1753505639267,1e-08,3752.3,3752.2,3.3142]
[1753505640585,1e-08,3752.3,3752.2,7.12867416]
[1753505640791,1e-08,3752.3,3752.2,7.10202313]
[1753505640952,1e-08,3752.3,3752.2,10.62899591]
[1753505641151,1e-08,3752.3,3752.2,7.65202313]
[1753505642787,1e-08,3752.3,3752.2,11.86662442]
[1753505644169,1e-08,3752.3,3752.2,7.10302313]
[1753505646423,1e-08,3752.3,3752.2,7.30708734]
[1753505646999,1e-08,3752.3,3752.2,4.88008734]
[1753505647186,1e-08,3752.3,3752.2,4.23992313]
[1753505647500,1e-08,3752.3,3752.2,6.66592313]
[1753505647888,1e-08,3752.3,3752.2,6.79952313]
[1753505648207,1e-08,3752.3,3752.2,4.80962313]
[1753505648366,1e-08,3752.3,3752.2,7.26327416]
[1753505648566,1e-08,3752.3,3752.2,7.23662313]
[1753505651817,1e-08,3752.3,3752.2,6.80052313]
[1753505651982,1e-08,3752.3,3752.2,3.13022313]
[1753505652183,1e-08,3752.3,3752.1,0.001]
[1753505652383,0.46690001,3752.3,3752.2,2.426]
[1753505652822,1e-08,3752.3,3752.2,2.426]
[1753505654924,0.46690001,3752.3,3752.2,2.426]
[1753505655123,1e-08,3752.3,3752.2,2.426]
[1753505655824,1e-08,3752.3,3752.2,2.8781]
[1753505658424,1e-08,3752.3,3752.2,2.8771]
[1753505662830,1e-08,3752.3,3752.2,5.54220313]
[1753505663032,1e-08,3752.3,3752.2,5.97310313]